bitfinex-derivatives/quotes_BNBF0:USTF0_20250521
["timestamp","ask_amount","ask_price","bid_price","bid_amount"]
[1747839137362,0.26433726,659.1,657.8,0.56987462]
[1747839137563,0.26433726,659.1,657.77,0.30395682]
[1747839137765,3.77989564,659.88,657.78,0.569862]
[1747839137968,3.77989564,659.88,657.79,0.8738648]
[1747839138168,3.77989564,659.88,657.8,0.56990798]
[1747839138369,3.77989564,659.88,657.81,0.56975801]
[1747839138571,3.77989564,659.88,657.82,0.56975801]
[1747839138766,3.77989564,659.88,657.83,0.56975801]
[1747839138965,0.26423389,659.87,657.84,0.56975801]
[1747839139171,0.26423389,659.87,657.82,0.30395682]
[1747839139375,0.26423389,659.87,657.83,0.56946817]
[1747839139569,0.26423389,659.87,657.84,0.56946817]
[1747839139773,0.26423389,659.87,657.82,0.30395682]
[1747839140064,0.26423389,659.87,657.85,0.30395682]
[1747839140770,3.77989564,659.88,657.85,0.30395682]
[1747839141370,3.77989564,659.88,657.86,0.30395682]
[1747839141971,0.26427503,659.87,657.86,0.30395682]
[1747839142969,0.26427503,659.87,657.87,0.30395682]
[1747839143571,0.26427503,659.87,657.88,1.584]
[1747839145867,1.24740148,659.87,657.88,1.584]
[1747839148276,0.26427503,659.87,657.88,1.584]
[1747839149689,3.77989564,659.88,657.88,1.584]
[1747839150880,3.77989564,659.24,657.88,1.584]
[1747839155981,0.26437843,659.23,657.88,1.584]
[1747839156581,0.26437843,659.23,657.24,0.14493037]
[1747839156783,0.26437843,659.23,657.25,0.57079307]
[1747839156982,0.26437843,659.23,657.26,0.57079307]
[1747839157178,0.26437843,659.23,657.27,0.57079307]
[1747839157376,0.26437843,659.23,657.28,1.67689505]
[1747839157580,0.26437843,659.23,657.29,0.57079307]
[1747839157783,0.26437843,659.23,657.3,0.57079307]
[1747839158084,0.26437843,659.23,657.31,1.67689505]
[1747839158278,0.26437843,659.23,657.32,0.57079307]
[1747839158481,0.26437843,659.23,657.33,0.57079307]
[1747839158678,0.26437843,659.23,657.34,0.57079307]
[1747839158883,0.26437843,659.23,657.35,0.57079307]
[1747839159078,0.26437843,659.23,657.36,0.57079307]
[1747839159283,0.26437843,659.23,657.37,0.57079307]
[1747839159485,0.26437843,659.23,657.38,0.57079307]
[1747839159680,0.26437843,659.23,657.37,0.30396013]
[1747839159883,0.26437843,659.23,657.38,0.57055596]
[1747839160083,0.26437843,659.23,657.39,0.57055596]
[1747839160288,0.26437843,659.23,657.4,0.57055596]
[1747839160498,0.26437843,659.23,657.41,0.57055596]
[1747839160780,0.26437843,659.23,657.42,0.57055596]
[1747839160985,0.26437843,659.23,657.43,0.57055596]
[1747839161187,0.26437843,659.23,657.44,0.57055596]
[1747839161387,0.26437843,659.23,657.45,0.57055596]
[1747839161584,0.26437843,659.23,657.46,0.57055596]
[1747839161783,3.77989564,659.24,657.47,0.57055596]
[1747839161993,0.26440052,659.22,657.48,0.57055596]
[1747839162286,0.26440052,659.22,657.49,0.57055596]
[1747839162583,0.26440052,659.22,657.5,0.57055596]
[1747839162788,0.26440052,659.22,657.51,0.57055596]
[1747839162989,0.26440052,659.22,657.52,0.57055596]
[1747839163183,0.26440052,659.22,657.53,0.57055596]
[1747839163387,0.26440052,659.22,657.54,0.56985639]
[1747839163590,0.26440052,659.22,657.55,0.56985639]
[1747839163785,0.26440052,659.22,657.56,0.56985639]
[1747839163982,0.26440052,659.22,657.57,0.56985639]
[1747839164186,0.26440052,659.22,657.58,0.56985639]
[1747839164385,0.26440052,659.22,657.59,0.56985639]
[1747839164589,0.26440052,659.22,657.6,0.56985639]
[1747839164785,0.26440052,659.22,657.61,0.56985639]
[1747839164990,0.26440052,659.22,657.62,0.56985639]
[1747839165190,0.26440052,659.22,657.63,0.56950043]
[1747839165392,0.26440052,659.22,657.64,0.56950043]
[1747839165590,0.26440052,659.22,657.65,0.87346056]
[1747839165790,0.26440052,659.22,657.66,0.56950043]
[1747839165992,0.26440052,659.22,657.65,0.30396013]
[1747839166191,0.26440052,659.22,657.66,0.56969305]
[1747839166401,0.26440052,659.22,657.65,0.30396013]
[1747839166892,3.77989564,659.13,657.66,0.30396013]
[1747839167387,3.77989564,659.13,657.67,0.56984085]
[1747839167591,3.77989564,659.13,657.66,0.30396013]
[1747839167791,3.77989564,659.13,657.67,0.56988029]
[1747839167986,3.77989564,659.13,657.66,0.30396013]
[1747839168190,3.77989564,659.13,657.68,0.30396013]
[1747839168890,3.77989564,659.13,657.69,0.56981456]
[1747839169093,3.77989564,659.13,657.68,0.30396013]
[1747839169291,3.77989564,659.13,657.69,0.56980592]
[1747839169487,3.77989564,659.13,657.7,0.56980592]
[1747839169693,3.77989564,659.13,657.71,0.56980592]
[1747839169994,3.77989564,659.13,657.72,0.56980592]
[1747839170191,3.77989564,659.13,657.69,0.30396013]
[1747839170192,3.77989564,659.13,657.73,0.56980592]
[1747839170392,3.77989564,659.13,657.74,0.56980592]
[1747839170696,3.77989564,659.13,657.75,0.56980592]
[1747839170888,3.77989564,659.13,657.76,0.56980592]
[1747839171093,3.77989564,659.13,657.77,0.56980592]
[1747839171290,3.77989564,659.13,657.78,0.56980592]
[1747839171489,3.77989564,659.13,657.79,0.56980592]
[1747839171695,3.77989564,659.13,657.8,0.56980592]
[1747839171891,3.77989564,659.13,657.78,0.30396013]
[1747839172092,0.26433425,659.12,657.79,0.56920357]
[1747839172294,0.26433425,659.12,657.8,0.56920357]
[1747839172494,0.26433425,659.12,657.78,0.30396013]
[1747839172792,0.26433425,659.12,657.79,0.56913794]
[1747839172995,0.26433425,659.12,657.8,0.56913794]
[1747839173205,0.26433425,659.12,657.8,0.30396013]
[1747839173598,0.26433425,659.12,657.81,0.56901306]
[1747839173799,3.77989564,659.22,657.8,0.30396013]
[1747839173993,3.77989564,659.22,657.81,0.56900162]
[1747839174196,3.77989564,659.22,657.82,0.56900162]
[1747839174497,3.77989564,659.22,657.83,0.56900162]
[1747839174798,3.77989564,659.22,657.84,0.87296175]
[1747839175099,0.26430714,659.21,657.85,0.56900162]
[1747839175299,0.26430714,659.21,657.86,0.56900162]
[1747839175494,0.26430714,659.21,657.87,0.56900162]
[1747839175694,0.26430714,659.21,657.88,0.56900162]
[1747839175898,0.26430714,659.21,657.89,0.56900162]
[1747839176201,3.77989564,659.12,657.88,0.30396013]
[1747839176400,3.77989564,659.12,657.89,0.56843597]
[1747839176699,3.77989564,659.12,657.88,0.30396013]
[1747839176901,3.77989564,659.12,657.89,0.56848932]
[1747839177095,3.77989564,659.12,657.9,0.56847767]
[1747839177300,3.77989564,659.12,657.88,0.30396013]
[1747839177501,3.77989564,659.12,657.89,0.87234595]
[1747839177700,3.77989564,659.12,657.9,0.56838582]
[1747839179503,0.26430714,659.21,657.91,0.30396013]
[1747839179705,3.77989564,659.77,657.92,0.56838582]
[1747839180001,3.77989564,659.77,657.93,0.56838582]
[1747839180204,3.77989564,659.77,657.94,0.56838582]
[1747839180503,3.77989564,659.77,657.91,0.30396013]
[1747839180703,3.77989564,659.77,657.92,0.56812551]
[1747839180999,0.26424894,659.76,657.93,0.56812551]
[1747839181202,0.26424894,659.76,657.94,0.87208564]
[1747839181402,0.26424894,659.76,657.95,0.56812551]
[1747839181697,0.26424894,659.76,657.96,0.56812551]
[1747839181897,0.26424894,659.76,657.94,0.30396013]
[1747839182104,0.26424894,659.76,657.95,0.56724462]
[1747839182302,0.26424894,659.76,657.96,0.56724462]
[1747839182502,0.26424894,659.76,657.97,0.56724462]
[1747839182703,0.26424894,659.76,657.94,0.30396013]
[1747839182903,0.26424894,659.76,657.96,0.30396013]
[1747839183103,0.26424894,659.76,657.97,0.56654154]
[1747839183305,0.26424894,659.76,657.98,0.56654154]
[1747839183499,0.26424894,659.76,657.99,0.56654154]
[1747839183706,0.26424894,659.76,658.0,0.56654154]
[1747839183907,0.26424894,659.76,658.01,0.56654154]
[1747839184105,0.26424894,659.76,658.02,0.87050167]
[1747839184306,0.26424894,659.76,658.03,0.56654154]
[1747839184505,0.26424894,659.76,658.04,0.56654154]
[1747839184704,0.26424894,659.76,658.05,0.56654154]
[1747839184904,0.26424894,659.76,658.06,0.56654154]
[1747839185105,0.26424894,659.76,658.07,0.56654154]
[1747839185300,0.26424894,659.76,658.08,0.56654154]
[1747839185604,0.26424894,659.76,658.09,0.56654154]
[1747839185804,0.26424894,659.76,658.1,0.56654154]
[1747839186004,0.26424894,659.76,658.11,0.56654154]
[1747839186206,0.26424894,659.76,657.99,1.443]
[1747839186207,0.26424894,659.76,658.12,0.56654154]
[1747839186401,0.26424894,659.76,658.13,0.56654154]
[1747839186607,0.26424894,659.76,658.14,0.56654154]
[1747839186807,0.26424894,659.76,658.15,0.56654154]
[1747839187002,0.26424894,659.76,658.16,0.56654154]
[1747839187202,0.26424894,659.76,658.17,0.56654154]
[1747839187404,0.26424894,659.76,658.18,0.56654154]
[1747839187603,0.26424894,659.76,658.19,0.56654154]
[1747839187805,0.26424894,659.76,658.2,0.56654154]
[1747839188010,0.26424894,659.76,658.18,0.30396013]
[1747839188206,0.26424894,659.76,658.19,0.56458338]
[1747839188407,0.26424894,659.76,658.18,0.30396013]
[1747839188811,0.26424894,659.76,658.19,0.30396013]
[1747839190017,0.26424894,659.76,658.2,0.30396013]
[1747839191614,0.26424894,659.76,658.21,0.30396013]
[1747839192822,0.26424894,659.76,658.22,0.30396013]
[1747839194114,0.26424894,659.76,658.23,0.30396013]
[1747839194719,3.77989564,660.54,658.23,0.30396013]
[1747839195015,0.26410655,659.75,658.23,0.30396013]
[1747839195219,3.77989564,660.54,658.0,0.14493037]
[1747839196120,0.26410856,660.53,658.0,0.14493037]
[1747839196325,0.26410856,660.53,658.01,0.30370568]
[1747839197726,3.77989564,660.54,658.01,0.30370568]
[1747839198025,0.26409353,660.52,658.01,0.30370568]
[1747839198522,0.26409353,660.52,658.02,0.30370568]
[1747839199726,3.77989564,660.09,658.03,0.30370568]
[1747839201026,0.26414364,660.08,658.03,0.30370568]
[1747839201228,0.26414364,660.08,657.99,1.443]
[1747839201229,0.26414364,660.08,658.04,0.30370568]
[1747839202329,0.26414364,660.08,658.05,0.30370568]
[1747839203733,3.77989564,660.09,658.05,0.30370568]
[1747839204028,3.77989564,660.09,658.06,0.30370568]
[1747839205032,0.26416971,660.08,658.06,0.30370568]
[1747839205632,0.26416971,660.08,658.07,0.30370568]
[1747839206633,3.77989564,660.09,658.07,0.30370568]
[1747839206928,0.26417572,660.07,658.07,0.30370568]
[1747839207139,0.26417572,660.07,658.0,0.30370568]
[1747839208534,0.26417572,660.07,657.99,1.443]
[1747839210236,0.26417572,660.07,657.74,0.14493037]
[1747839211338,0.98312645,659.82,657.74,0.14493037]
[1747839211637,0.98312645,659.82,657.75,0.30378167]
[1747839212934,0.98312645,659.82,657.76,0.30378167]
[1747839213941,0.26429811,659.81,657.76,0.30378167]
[1747839214435,0.26429811,659.81,657.72,0.30378167]
[1747839215039,0.26429811,659.81,657.73,1.58]
[1747839215238,0.26429811,659.81,657.74,0.30378167]
[1747839218739,3.77989564,659.82,657.74,0.30378167]
[1747839220138,0.26428306,659.81,657.74,0.30378167]
[1747839221745,3.77989564,659.82,657.74,0.30378167]
[1747839223048,0.26429711,659.81,657.74,0.30378167]
[1747839224847,0.26429711,659.81,657.73,1.58]
[1747839229748,3.77989564,659.53,657.74,0.30388166]
[1747839231051,0.26431417,659.52,657.74,0.30388166]
[1747839231252,0.26431417,659.52,657.75,0.30388166]
[1747839232654,0.26431417,659.52,657.76,0.30388166]
[1747839233554,0.26431417,659.52,657.73,1.58]
[1747839233752,3.77989564,659.53,657.73,1.58]
[1747839235055,0.26431417,659.52,657.73,1.58]
[1747839235554,0.26431417,659.52,657.74,0.30387218]
[1747839236755,3.77989564,659.53,657.74,0.30387218]
[1747839236955,3.77989564,659.53,657.75,0.30387218]
[1747839237156,0.26431417,659.51,657.75,0.30387218]
[1747839238350,0.26431417,659.51,657.76,0.30387218]
[1747839240560,0.26431417,659.51,657.77,0.30387218]
[1747839242161,0.26431417,659.51,657.78,0.30387218]
[1747839242765,3.77989564,659.85,657.78,0.30387218]
[1747839242954,3.77989564,659.85,657.79,0.30387218]
[1747839243159,0.26428807,659.5,657.79,0.30387218]
[1747839243362,3.77989564,659.85,657.79,0.30387218]
[1747839244062,0.26433123,659.84,657.79,0.30387218]
[1747839244463,5.2918539,659.53,657.55,0.14493037]
[1747839245664,5.2918539,659.53,657.56,0.30392178]
[1747839245858,5.2918539,659.53,657.56,1.71992178]
[1747839246864,5.2918539,659.53,657.57,0.30392178]
[1747839247067,0.26436738,659.52,657.57,0.30392178]
[1747839248867,5.2918539,659.53,657.57,0.30392178]
[1747839249969,0.26435734,659.52,657.57,0.30392178]
[1747839251770,5.2918539,659.53,657.57,0.30392178]
[1747839253071,0.26436738,659.52,657.57,0.30392178]
[1747839254772,5.2918539,659.53,657.57,0.30392178]
[1747839255375,3.77989564,659.29,657.57,0.30392178]
[1747839255971,0.2643955,659.28,657.57,0.30392178]
[1747839256673,0.2643955,659.28,657.56,1.416]
[1747839257874,3.77989564,659.29,657.56,1.416]
[1747839259068,0.26439148,659.28,657.56,1.416]
[1747839259274,0.26439148,659.28,657.57,0.3039527]
[1747839260574,0.26439148,659.28,657.56,1.416]
[1747839260769,3.77989564,659.29,657.56,1.416]
[1747839261376,0.26440755,659.28,657.56,1.416]
[1747839264979,0.26440755,659.28,657.57,0.56782242]
[1747839265182,0.26440755,659.28,657.56,1.416]
[1747839265382,0.26440755,659.28,657.58,0.30391984]
[1747839265881,0.26440755,659.28,657.59,0.56807351]
[1747839266181,0.26440755,659.28,657.58,0.30391984]
[1747839266381,0.26440755,659.28,657.59,0.56807693]
[1747839266687,0.26440755,659.28,657.6,0.56807693]
[1747839266883,0.26440755,659.28,657.6,0.30391984]
[1747839267382,0.26440755,659.28,657.61,0.56839151]
[1747839267583,0.26440755,659.28,657.6,0.30391984]
[1747839267982,0.26440755,659.28,657.61,0.56839205]
[1747839268181,0.26440755,659.28,657.62,0.30391984]
[1747839269188,0.26440755,659.28,657.63,0.56843441]
[1747839269487,0.26440755,659.28,657.64,0.56843441]
[1747839269679,3.77989564,659.09,657.65,0.56843441]
[1747839270280,3.77989564,659.09,657.66,0.56853847]
[1747839270485,3.77989564,659.09,657.64,0.30391984]
[1747839270686,3.77989564,659.09,657.65,0.56872643]
[1747839270985,3.77989564,659.09,657.66,0.30391984]
[1747839271684,0.26441961,659.08,657.66,0.30391984]
[1747839272381,0.26441961,659.08,657.56,1.416]
[1747839272886,3.77989564,659.09,657.56,1.416]
[1747839273088,0.2644176,659.07,657.56,1.416]
[1747839273787,0.2644176,659.07,657.57,0.30396891]
[1747839274785,0.2644176,659.07,657.29,0.14493037]
[1747839274986,0.2644176,659.07,657.3,0.5694393]
[1747839275185,0.2644176,659.07,657.31,0.5694393]
[1747839275382,0.2644176,659.07,657.32,0.5694393]
[1747839275580,0.2644176,659.07,657.33,0.5694393]
[1747839275885,3.77989564,659.09,657.34,0.5694393]
[1747839276081,3.77989564,659.09,657.35,0.5694393]
[1747839276280,3.77989564,659.09,657.36,0.87345858]
[1747839276485,3.77989564,659.09,657.37,0.5694393]
[1747839276786,3.77989564,659.09,657.38,0.5694393]
[1747839276990,0.2644608,659.08,657.39,0.5694393]
[1747839277186,0.2644608,659.08,657.4,0.5694393]
[1747839277387,0.2644608,659.08,657.39,1.283]
[1747839277688,0.2644608,659.08,657.4,0.87320578]
[1747839277881,0.2644608,659.08,657.41,0.5691865]
[1747839278079,0.2644608,659.08,657.42,0.5691865]
[1747839278284,0.2644608,659.08,657.43,0.5691865]
[1747839278581,0.2644608,659.08,657.44,0.5691865]
[1747839278782,0.2644608,659.08,657.45,0.87320578]
[1747839278982,0.2644608,659.08,657.46,0.5691865]
[1747839279183,0.2644608,659.08,657.47,0.5691865]
[1747839279389,0.2644608,659.08,657.48,0.5687152]
[1747839279591,0.2644608,659.08,657.49,0.5687152]
[1747839279791,0.2644608,659.08,657.5,0.5687152]
[1747839279991,0.2644608,659.08,657.51,0.5687152]
[1747839280193,0.2644608,659.08,657.52,0.5687152]
[1747839280392,0.2644608,659.08,657.53,0.5687152]
[1747839280586,0.2644608,659.08,657.54,0.5687152]
[1747839280792,0.2644608,659.08,657.55,0.87273448]
[1747839281089,0.2644608,659.08,657.56,0.5687152]
[1747839281794,3.77989564,659.09,657.56,0.5687152]
[1747839282196,3.77989564,659.09,657.57,0.87273448]
[1747839282395,3.77989564,659.09,657.58,0.5687152]
[1747839282695,3.77989564,659.09,657.59,0.5687152]
[1747839282900,0.2643714,659.08,657.6,0.5687152]
[1747839283094,0.2643714,659.08,657.61,0.5687152]
[1747839283293,0.2643714,659.08,657.62,0.5687152]
[1747839283490,0.2643714,659.08,657.63,0.5687152]
[1747839283690,0.2643714,659.08,657.57,0.30401928]
[1747839283691,0.2643714,659.08,657.64,0.5687152]
[1747839283894,0.2643714,659.08,657.65,0.5687152]
[1747839284191,0.2643714,659.08,657.66,0.5687152]
[1747839284397,0.2643714,659.08,657.67,0.5687152]
[1747839284696,0.2643714,659.08,657.68,0.5687152]
[1747839284898,3.77989564,659.2,657.69,0.56834141]
[1747839285100,0.26435131,659.07,657.7,0.56834141]
[1747839285294,3.77989564,659.2,657.71,0.87236069]
[1747839285493,3.77989564,659.2,657.72,0.56834141]
[1747839285796,3.77989564,659.2,657.71,0.30401928]
[1747839286202,0.26438847,659.19,657.71,0.30401928]
[1747839286698,0.26438847,659.19,657.72,0.30401928]
[1747839287694,3.77989564,659.2,657.72,0.30401928]
[1747839287998,0.26439751,659.19,657.72,0.30401928]
[1747839288201,0.26439751,659.19,657.73,0.30401928]
[1747839289495,0.26439751,659.19,657.46,0.14493037]
[1747839289701,0.26439751,659.19,657.47,0.56873978]
[1747839289902,0.26439751,659.19,657.48,0.56873978]
[1747839290200,0.26439751,659.19,657.49,0.56873978]
[1747839290400,0.26439751,659.19,657.5,0.568807]
[1747839290595,0.26439751,659.19,657.51,0.568807]
[1747839290795,0.26439751,659.19,657.52,0.568807]
[1747839290995,0.26439751,659.19,657.53,0.568807]
[1747839291299,0.26439751,659.19,657.54,0.568807]
[1747839291499,0.26439751,659.19,657.55,0.87272975]
[1747839291699,0.26439751,659.19,657.56,0.568807]
[1747839291896,0.26439751,659.19,657.57,0.568807]
[1747839292102,0.26439751,659.19,657.58,0.56879319]
[1747839292302,0.26439751,659.19,657.59,0.56879319]
[1747839292503,0.26439751,659.19,657.6,0.56879319]
[1747839292704,0.26439751,659.19,657.55,0.30392275]
[1747839293002,0.26439751,659.19,657.6,0.30392275]
[1747839293804,3.77989564,659.2,657.6,0.30392275]
[1747839294503,3.77989564,659.2,657.44,0.30392275]
[1747839294701,3.77989564,659.2,657.45,0.56906171]
[1747839294902,3.77989564,659.2,657.46,0.56906171]
[1747839295101,0.2644176,659.19,657.47,0.56906171]
[1747839295301,0.2644176,659.19,657.48,0.56906171]
[1747839295502,0.2644176,659.19,657.49,0.56906171]
[1747839295805,0.2644176,659.19,657.5,0.56909257]
[1747839295997,0.2644176,659.19,657.51,0.56909257]
[1747839296201,0.2644176,659.19,657.52,0.56909257]
[1747839296402,0.2644176,659.19,657.53,0.56909257]
[1747839296599,0.2644176,659.19,657.54,0.56909257]
[1747839296806,3.77989564,659.2,657.55,0.56909257]
[1747839297003,3.77989564,659.2,657.56,0.56909257]
[1747839297201,3.77989564,659.2,657.57,0.56909257]
[1747839297405,3.77989564,659.2,657.58,0.56909257]
[1747839297606,3.77989564,659.2,657.59,0.56909257]
[1747839297808,3.77989564,659.2,657.6,0.56909257]
[1747839298001,0.26437943,659.19,657.61,0.87301532]
[1747839298204,0.26437943,659.19,657.61,0.30392275]
[1747839298409,0.26437943,659.19,657.62,0.56919972]
[1747839298705,0.26437943,659.19,657.61,0.30392275]
[1747839298906,0.26437943,659.19,657.62,0.56940997]
[1747839299102,0.26437943,659.19,657.61,0.30392275]
[1747839299308,0.26437943,659.19,657.62,0.56946998]
[1747839299508,0.26437943,659.19,657.61,0.30392275]
[1747839299807,3.77989564,659.2,657.62,0.56956535]
[1747839300007,3.77989564,659.2,657.61,0.30392275]
[1747839300208,3.77989564,659.01,657.62,0.87349998]
[1747839300409,3.77989564,659.01,657.62,0.30392275]
[1747839301005,0.26443669,659.0,657.62,0.30392275]
[1747839301809,0.26443669,659.0,657.63,0.56996301]
[1747839302010,0.26443669,659.0,657.63,0.30392275]
[1747839302609,0.26443669,659.0,657.64,1.668]
[1747839303310,0.26443669,659.0,657.65,0.57018905]
[1747839303512,0.26443669,659.0,657.65,0.30392275]
[1747839304306,0.26443669,659.0,657.66,0.57020935]
[1747839304510,0.26443669,659.0,657.65,0.30392275]
[1747839304807,0.26443669,659.0,657.66,0.30392275]
[1747839305810,3.77989564,659.01,657.66,0.30392275]
[1747839306111,3.77989564,659.01,657.67,0.57015994]
[1747839306310,3.77989564,659.01,657.68,0.56979524]
[1747839306609,3.77989564,659.01,657.69,0.56979524]
[1747839306810,3.77989564,659.01,657.7,0.56979524]
[1747839307013,0.26436638,659.0,657.71,0.56979524]
[1747839307208,0.26436638,659.0,657.72,0.56979524]
[1747839307409,0.26436638,659.0,657.73,0.56979524]
[1747839307607,0.26436638,659.0,657.74,0.56979524]
[1747839307808,0.26436638,659.0,657.75,0.56979524]
[1747839308009,0.26436638,659.0,657.76,0.56979524]
[1747839308207,0.26436638,659.0,657.77,0.56944618]
[1747839308403,0.26436638,659.0,657.69,0.30392275]
[1747839308404,0.26436638,659.0,657.78,0.87336893]
[1747839308610,0.26436638,659.0,657.79,0.56944618]
[1747839308811,0.26436638,659.0,657.8,0.56944618]
[1747839309011,0.26436638,659.0,657.81,0.56944618]
[1747839309211,0.26436638,659.0,657.82,0.56944618]
[1747839309513,0.26436638,659.0,657.83,0.56944618]
[1747839309712,0.26436638,659.0,657.84,0.56944618]
[1747839309913,0.26436638,659.0,657.85,0.5690648]
[1747839310113,0.26436638,659.0,657.85,0.30392275]
[1747839310306,0.26436638,659.0,657.86,0.56886799]
[1747839310512,0.26436638,659.0,657.87,0.56886799]
[1747839310809,0.26436638,659.0,657.85,0.30392275]
[1747839311007,0.26436638,659.0,657.86,0.56887994]
[1747839311211,0.26436638,659.0,657.85,0.30392275]
[1747839311505,0.26436638,659.0,657.86,0.56872577]
[1747839311707,0.26436638,659.0,657.85,0.30392275]
[1747839311913,3.77989564,659.19,657.86,0.87255813]
[1747839312115,3.77989564,659.19,657.86,0.30392275]
[1747839313015,0.26433123,659.18,657.86,0.30392275]
[1747839313616,0.26433123,659.18,657.87,0.30392275]
[1747839314817,3.77989564,659.27,657.87,0.30392275]
[1747839315115,3.77989564,659.27,657.88,0.30392275]
[1747839316017,0.26430514,659.26,657.88,0.30392275]
[1747839316622,0.26430514,659.26,657.89,0.56778514]
[1747839316822,0.26430514,659.26,657.89,0.30392275]
[1747839317824,3.77989564,659.27,657.89,0.30392275]
[1747839318224,3.77989564,659.27,657.9,0.30392275]
[1747839319024,0.26430714,659.26,657.9,0.30392275]
[1747839319626,0.26430714,659.26,657.91,0.30392275]
[1747839320727,0.26430714,659.26,657.92,0.30392275]
[1747839321024,3.77989564,659.27,657.92,0.30392275]
[1747839322127,0.26430714,659.26,657.92,0.30392275]
[1747839322525,0.26430714,659.26,657.93,0.56675784]
[1747839322827,0.26430714,659.26,657.94,0.56664681]
[1747839323020,0.26430714,659.26,657.95,0.56664681]
[1747839323223,0.26430714,659.26,657.96,0.56664681]
[1747839323424,0.26430714,659.26,657.97,0.56664681]
[1747839323627,0.26430714,659.26,657.98,0.56664681]
[1747839323825,0.26430714,659.26,657.99,0.56664681]
[1747839324026,0.26430714,659.26,658.0,0.56664681]
[1747839325833,0.26430714,659.26,658.01,0.30392275]
[1747839326129,0.26430714,659.26,658.02,2.18064681]
[1747839326329,0.26430714,659.26,658.03,0.56664681]
[1747839326530,0.26430714,659.26,658.04,0.56664681]
[1747839326731,0.26430714,659.26,658.05,0.56664681]
[1747839326932,3.77989564,660.03,658.02,1.614]
[1747839327125,3.77989564,660.03,658.03,0.565906]
[1747839327329,3.77989564,660.03,658.04,0.565906]
[1747839327529,3.77989564,660.03,658.05,0.56568431]
[1747839327730,3.77989564,660.03,658.05,0.30392275]
[1747839328134,0.26414765,660.02,658.05,0.30392275]
[1747839329131,0.26414765,660.02,658.06,0.30392275]
[1747839329833,3.77989564,660.03,658.06,0.30392275]
[1747839330133,3.77989564,660.03,658.07,0.30392275]
[1747839331133,0.26415066,660.02,658.07,0.30392275]
[1747839331834,0.26415066,660.02,658.08,0.30392275]
[1747839332834,3.77989564,660.03,658.08,0.30392275]
[1747839333034,3.77989564,660.03,658.09,0.30392275]
[1747839333235,0.2641667,660.01,658.09,0.30392275]
[1747839334637,0.2641667,660.01,658.1,0.30392275]
[1747839335844,3.77989564,660.03,658.11,0.30392275]
[1747839336138,0.26414464,660.0,658.11,0.30392275]
[1747839337144,0.26414464,660.0,658.12,0.56454405]
[1747839337341,0.26414464,660.0,658.13,0.56454405]
[1747839337541,0.26414464,660.0,658.14,0.56454405]
[1747839337745,0.26414464,660.0,658.15,0.56454405]
[1747839337935,0.26414464,660.0,658.16,0.56454405]
[1747839338135,0.26414464,660.0,658.17,0.56454405]
[1747839338340,0.26414464,660.0,658.18,0.56454405]
[1747839338637,0.26414464,660.0,658.19,0.56454405]
[1747839338841,3.77989564,660.23,658.15,0.30392275]
[1747839339038,3.77989564,660.23,658.16,0.56536175]
[1747839339242,3.77989564,660.23,658.16,0.86929367]
[1747839339442,3.77989564,660.23,658.17,0.56503095]
[1747839339752,3.77989564,660.23,658.18,0.56503095]
[1747839339944,3.77989564,660.23,658.19,0.56503095]
[1747839340147,0.26406347,660.22,658.2,0.56503095]
[1747839340338,0.26406347,660.22,658.21,0.56503095]
[1747839340542,0.26406347,660.22,658.22,0.56503095]
[1747839340739,0.26406347,660.22,658.23,0.56503095]
[1747839340943,0.26406347,660.22,658.24,0.56503095]
[1747839341142,0.26406347,660.22,658.25,0.56503095]
[1747839341347,0.26406347,660.22,658.24,0.30392275]
[1747839341647,0.26406347,660.22,658.25,2.21647979]
[1747839341941,3.77989564,660.34,658.25,1.652]
[1747839342147,3.77989564,660.34,658.26,0.30392275]
[1747839343049,0.26405245,660.33,658.26,0.30392275]
[1747839343849,0.26405245,660.33,658.27,0.30392275]
[1747839345748,0.26405245,660.33,658.28,0.30392275]
[1747839346352,0.26405245,660.33,658.29,0.56347597]
[1747839346551,0.26405245,660.33,658.3,0.56347597]
[1747839346751,0.26405245,660.33,658.31,0.56347597]
[1747839346948,0.26405245,660.33,658.32,0.56347597]
[1747839347148,0.26405245,660.33,658.33,0.56347597]
[1747839347347,0.26405245,660.33,658.34,0.56347597]
[1747839347549,0.26405245,660.33,658.35,0.56347597]
[1747839347748,0.26405245,660.33,658.36,0.56347597]
[1747839347950,3.77989564,661.49,658.37,0.56347597]
[1747839348147,3.77989564,661.49,658.38,0.56347597]
[1747839348349,0.26388025,660.32,658.39,0.56285287]
[1747839348552,3.77989564,661.49,658.32,0.30392275]
[1747839348752,3.77989564,661.49,658.4,0.30392275]
[1747839349353,0.26388926,661.48,658.4,0.30392275]
[1747839349853,0.26388926,661.48,658.41,0.30392275]
[1747839350558,0.26388926,661.48,658.42,0.56237528]
[1747839350752,0.26388926,661.48,658.43,0.56237528]
[1747839350950,0.26388926,661.48,658.44,0.56237528]
[1747839351149,0.26388926,661.48,658.45,0.56237528]
[1747839351349,0.26388926,661.48,658.46,0.86629803]
[1747839351654,0.26388926,661.48,658.47,0.56237528]
[1747839351847,0.26388926,661.48,658.46,0.30392275]
[1747839351848,0.26388926,661.48,658.48,0.56167741]
[1747839352052,0.26388926,661.48,658.49,0.56167741]